bitfinex/quotes_BTCUSD_20251114
["timestamp","ask_amount","ask_price","bid_price","bid_amount"]
[1763114487319,0.00013646,96892.0,96891.0,0.70184418]
[1763114487943,0.00013646,96892.0,96891.0,0.74526292]
[1763114488361,0.00013646,96892.0,96891.0,0.77622984]
[1763114489011,0.00013646,96892.0,96891.0,0.7328111]
[1763114489183,0.00013646,96892.0,96891.0,0.80793418]
[1763114491161,0.00013646,96892.0,96891.0,0.79763972]
[1763114492228,0.00013646,96892.0,96891.0,0.84105846]
[1763114492429,0.00013646,96892.0,96891.0,0.86951968]
[1763114492634,0.00013646,96892.0,96891.0,0.84105846]
[1763114493179,0.00013646,96892.0,96891.0,0.84005846]
[1763114493806,0.00013646,96892.0,96891.0,0.84105846]
[1763114495954,0.00013646,96892.0,96891.0,0.55143772]
[1763114496159,0.00013646,96892.0,96891.0,0.79177172]
[1763114496373,0.00013646,96892.0,96891.0,0.55143772]
[1763114496576,0.00013646,96892.0,96891.0,0.67531772]
[1763114497138,0.00013646,96892.0,96891.0,0.55143772]
[1763114497347,0.00013646,96892.0,96891.0,0.22743772]
[1763114497554,0.00013646,96892.0,96891.0,0.22843772]
[1763114498334,0.00013646,96892.0,96891.0,0.55143772]
[1763114498993,0.00013646,96892.0,96891.0,0.55043772]
[1763114501887,0.00013646,96892.0,96891.0,0.22743772]
[1763114504168,0.00013646,96892.0,96891.0,0.55043772]
[1763114512428,0.00013646,96892.0,96891.0,0.77373372]
[1763114513627,0.00013646,96892.0,96891.0,0.81715246]
[1763114514728,0.00013646,96892.0,96891.0,0.81615246]
[1763114514867,0.00013646,96892.0,96891.0,0.81715246]
[1763114515077,0.00013646,96892.0,96891.0,0.81815246]
[1763114515640,0.00013646,96892.0,96891.0,0.81615246]
[1763114515849,0.00013646,96892.0,96891.0,0.81815246]
[1763114516003,0.00013646,96892.0,96891.0,0.82015246]
[1763114518463,0.0002,96930.0,96929.0,0.20633659]
[1763114518645,0.00033641,96930.0,96929.0,0.22883187]
[1763114521140,0.00033641,96930.0,96929.0,0.02249528]
[1763114521348,0.20667087,96930.0,96929.0,0.01029528]
[1763114521774,0.20767087,96930.0,96929.0,0.01029528]
[1763114523833,0.20667087,96930.0,96929.0,0.01029528]
[1763114524247,0.20767087,96930.0,96929.0,0.01029528]
[1763114524449,0.20867087,96930.0,96929.0,0.01029528]
[1763114524644,0.20767087,96930.0,96929.0,0.01029528]
[1763114525165,0.20867087,96930.0,96929.0,0.01029528]
[1763114529552,0.53167087,96930.0,96929.0,0.01029528]
[1763114530927,0.20867087,96930.0,96929.0,0.01029528]
[1763114534568,0.25208961,96930.0,96929.0,0.01029528]
[1763114538902,0.20867087,96930.0,96929.0,0.01029528]
[1763114539713,0.53167087,96930.0,96929.0,0.01029528]
[1763114544644,0.00233641,96930.0,96929.0,0.01029528]
[1763114544841,0.00233641,96930.0,96929.0,0.21663187]
[1763114545052,0.00233641,96930.0,96929.0,0.01029528]
[1763114545272,0.20867087,96930.0,96929.0,0.01029528]
[1763114545694,0.00233641,96930.0,96929.0,0.01029528]
[1763114545925,0.20867087,96930.0,96929.0,0.01029528]
[1763114546057,0.20767087,96930.0,96929.0,0.01029528]
[1763114546460,0.20867087,96930.0,96929.0,0.01029528]
[1763114546685,0.00233641,96930.0,96929.0,0.01029528]
[1763114546864,0.00233641,96930.0,96929.0,0.21663187]
[1763114548146,0.20867087,96930.0,96929.0,0.01029528]
[1763114548500,0.00233641,96930.0,96929.0,0.01029528]
[1763114548812,0.00233641,96930.0,96929.0,0.20633659]
[1763114550736,0.00233641,96930.0,96928.0,0.20633741]
[1763114550941,0.20633689,96929.0,96928.0,0.01029528]
[1763114552000,0.3039525,96929.0,96928.0,0.01029528]
[1763114552648,0.3049525,96929.0,96928.0,0.01029528]
[1763114553239,0.3039525,96929.0,96928.0,0.01029528]
[1763114553660,0.3049525,96929.0,96928.0,0.01029528]
[1763114560244,0.20733689,96929.0,96928.0,0.01029528]
[1763114560462,0.3049525,96929.0,96928.0,0.01029528]
[1763114563072,0.3049522,96929.0,96928.0,0.01029528]
[1763114563272,0.09861561,96929.0,96928.0,0.01029528]
[1763114563480,0.3049522,96929.0,96928.0,0.01029528]
[1763114566575,0.001,96929.0,96928.0,0.01029528]
[1763114566775,0.09861561,96929.0,96928.0,0.01029528]
[1763114566977,0.001,96929.0,96928.0,0.01029528]
[1763114567193,0.001,96929.0,96928.0,0.216634]
[1763114567852,0.001,96929.0,96928.0,0.218634]
[1763114568760,0.001,96929.0,96928.0,0.01229528]
[1763114569234,0.001,96929.0,96928.0,0.218634]
[1763114571851,0.001,96929.0,96928.0,0.01229528]
[1763114576259,0.001,96929.0,96928.0,0.216634]
[1763114576485,0.00017781,96930.0,96929.0,0.23032659]
[1763114576867,0.00017781,96930.0,96929.0,0.20633659]
[1763114577662,0.00017781,96930.0,96929.0,0.20933659]
[1763114581999,0.0029684,96930.0,96929.0,0.20933659]
[1763114582203,0.0029684,96930.0,96929.0,0.20766659]
[1763114584417,0.0002756,96930.0,96929.0,0.20766659]
[1763114584614,0.0002756,96930.0,96929.0,0.53066659]
[1763114584785,0.0002756,96930.0,96929.0,0.9719248]
[1763114585744,0.0002756,96930.0,96929.0,0.9689248]
[1763114585899,0.0002756,96930.0,96929.0,0.9729248]
[1763114586723,0.0002756,96930.0,96929.0,0.9739248]
[1763114588460,0.0002756,96930.0,96929.0,1.01734354]
[1763114588640,0.0002756,96930.0,96929.0,0.97921554]
[1763114588844,0.0002756,96930.0,96929.0,0.03595721]
[1763114589047,0.0002756,96930.0,96929.0,0.005]
[1763114589661,0.0002756,96930.0,96929.0,0.001]
[1763114589897,0.20633659,96929.0,96928.0,0.01029528]
[1763114592329,0.20633659,96929.0,96928.0,0.01129528]
[1763114592705,0.20733659,96929.0,96928.0,0.01129528]
[1763114592911,0.20733659,96929.0,96928.0,0.01029528]
[1763114593131,0.20633659,96929.0,96928.0,0.01129528]
[1763114593535,0.20733659,96929.0,96928.0,0.01129528]
[1763114595760,0.25075533,96929.0,96928.0,0.01129528]
[1763114596376,0.20733659,96929.0,96928.0,0.01129528]
[1763114598195,0.23831074,96929.0,96928.0,0.01129528]
[1763114599779,0.33592635,96929.0,96928.0,0.01129528]
[1763114600776,0.33617518,96929.0,96928.0,0.01129528]
[1763114607354,0.30520103,96929.0,96928.0,0.01129528]
[1763114607956,0.62820103,96929.0,96928.0,0.01129528]
[1763114611445,0.67161977,96929.0,96928.0,0.01129528]
[1763114611651,0.67161977,96929.0,96928.0,0.001]
[1763114612671,0.67061977,96929.0,96928.0,0.001]
[1763114613132,0.20635362,96921.0,96920.0,0.0191781]
[1763114613414,0.52935788,96919.0,96918.0,0.01029528]
[1763114614824,0.53035788,96919.0,96918.0,0.01029528]
[1763114615294,0.53035788,96919.0,96918.0,0.01129528]
[1763114616014,0.52935788,96919.0,96918.0,0.01129528]
[1763114616223,0.53035788,96919.0,96918.0,0.01129528]
[1763114616425,0.53035788,96919.0,96918.0,0.01029528]
[1763114616835,0.53035788,96919.0,96918.0,0.01229528]
[1763114618509,0.57377662,96919.0,96918.0,0.01229528]
[1763114619464,0.24979366,96911.0,96910.0,0.0191781]
[1763114620634,0.24979366,96911.0,96910.0,0.0211781]
[1763114621138,0.25079366,96911.0,96910.0,0.0211781]
[1763114622479,0.57379366,96911.0,96910.0,0.0211781]
[1763114624978,0.55669366,96911.0,96910.0,0.0211781]
[1763114625903,0.55669366,96911.0,96910.0,0.002]
[1763114635774,0.20645848,96872.0,96870.0,0.01032311]
[1763114636170,0.20646013,96871.0,96869.0,0.20646344]
[1763114636605,0.2064583,96872.0,96869.0,0.20646344]
[1763114636819,0.20646653,96868.0,96867.0,0.01208]
[1763114637022,0.20646226,96870.0,96869.0,0.00045634]
[1763114637227,0.42316297,96890.0,96869.0,0.00045634]
[1763114637228,0.01032098,96890.0,96869.0,0.00045634]
[1763114637435,0.09761561,96876.0,96869.0,0.00045634]
[1763114637548,0.20645973,96872.0,96869.0,0.00045634]
[1763114637754,0.20646013,96871.0,96869.0,0.00045634]
[1763114638608,0.20646013,96871.0,96869.0,0.00245634]
[1763114638974,0.20646013,96871.0,96869.0,0.00045634]
[1763114639399,0.20646013,96871.0,96869.0,0.00245634]
[1763114640631,0.20646013,96871.0,96870.0,0.0191781]
[1763114640837,0.20646013,96871.0,96841.0,0.20652242]
[1763114640838,0.30975072,96853.0,96830.0,0.0004]
[1763114641059,0.20654345,96832.0,96830.0,0.0004]
[1763114642005,0.20654345,96832.0,96830.0,0.0195781]
[1763114642221,0.09761561,96831.0,96830.0,0.0195781]
[1763114642422,0.09761561,96831.0,96830.0,0.0024]
[1763114643768,0.01032417,96860.0,96840.0,0.0191781]
[1763114643968,0.09761561,96842.0,96839.0,0.01175]
[1763114644264,0.30413841,96842.0,96839.0,0.01175]
[1763114644409,0.20652468,96841.0,96839.0,0.01175]
[1763114644626,0.20652559,96841.0,96839.0,0.01175]
[1763114645045,0.09761561,96842.0,96839.0,0.01275]
[1763114645481,0.09761561,96842.0,96839.0,0.001]
[1763114645482,0.20652409,96841.0,96839.0,0.001]
[1763114645680,0.20652409,96841.0,96836.0,0.206534]
[1763114645846,0.09761561,96842.0,96839.0,0.002]
[1763114646283,0.09761561,96842.0,96839.0,0.20852769]
[1763114646530,0.09761561,96842.0,96839.0,0.002]
[1763114646737,0.09761561,96842.0,95159.0,0.001]
[1763114646738,0.09761561,96842.0,96810.0,0.2004]
[1763114646739,0.20654542,96831.0,96810.0,0.2004]
[1763114646948,0.20665213,96781.0,96780.0,0.0004]
[1763114647199,0.20667348,96771.0,96770.0,0.0004]
[1763114647413,0.52967348,96771.0,96770.0,0.0004]
[1763114647825,0.2066564,96779.0,96770.0,0.0004]
[1763114647826,0.04341874,96778.0,96770.0,0.0004]
[1763114648038,0.04341874,96771.0,96770.0,0.0004]
[1763114648254,0.323,96779.0,96770.0,0.00085364]
[1763114648692,0.09761561,96795.0,96770.0,0.00085364]
[1763114648693,0.323,96777.0,96770.0,0.00285364]
[1763114649111,0.323,96777.0,96770.0,0.00085364]
[1763114649313,0.52966129,96777.0,96770.0,0.00085364]
[1763114649522,0.20667169,96772.0,96770.0,0.00085364]
[1763114649723,0.323,96775.0,96770.0,0.00085364]
[1763114649910,0.20667199,96772.0,96770.0,0.00085364]
[1763114650419,0.20667199,96772.0,96770.0,0.00185364]
[1763114650861,0.09761561,96774.0,96770.0,0.00085364]
[1763114651077,0.20666921,96773.0,96770.0,0.00085364]
[1763114651272,0.09761561,96774.0,96770.0,0.00185364]
[1763114651679,0.20667348,96771.0,96770.0,0.00085364]
[1763114652081,0.323,96777.0,96770.0,0.00185364]
[1763114652281,0.20663624,96789.0,96778.0,0.20665733]
[1763114652483,0.00947304,96788.0,96777.0,0.20665923]
[1763114652710,0.09761561,96780.0,96770.0,0.02619364]
[1763114652882,0.30427201,96780.0,96770.0,0.02185364]
[1763114653080,0.20665721,96779.0,96770.0,0.02185364]
[1763114653283,0.20666627,96775.0,96770.0,0.00085364]
[1763114653497,0.20665721,96779.0,96770.0,0.00085364]
[1763114653746,0.20665721,96779.0,96773.0,0.20666905]
[1763114653901,0.20666095,96777.0,96771.0,0.20667348]
[1763114654119,0.20665853,96778.0,96770.0,0.00185364]
[1763114654291,0.09761561,96780.0,96770.0,0.00185364]
[1763114654292,0.09761561,96780.0,96770.0,0.20752712]
[1763114654491,0.52963197,96791.0,96790.0,0.02]
[1763114654690,0.53909358,96791.0,96790.0,0.02]
[1763114654932,0.20664526,96785.0,96781.0,0.01228]
[1763114655157,0.52963197,96791.0,96781.0,0.01228]
[1763114655357,0.21694395,96800.0,96787.0,0.20663754]
[1763114655358,0.323,96796.0,96787.0,0.20663754]
[1763114655561,0.21608318,96794.0,96785.0,0.20664188]
[1763114655759,0.20662437,96794.0,96785.0,0.20664359]
[1763114656180,0.20663199,96791.0,96782.0,0.02434]
[1763114656385,0.323,96799.0,96781.0,0.01228]
[1763114656552,0.20663439,96790.0,96783.0,0.20664786]
[1763114656946,0.20663439,96790.0,96781.0,0.01228]
[1763114656947,0.20663505,96789.0,96781.0,0.21993139]
[1763114657141,0.20663718,96788.0,96782.0,0.20664999]
[1763114657400,0.20663326,96790.0,96781.0,0.01228]
[1763114657624,0.20664923,96783.0,96781.0,0.01228]
[1763114657741,0.323,96799.0,96781.0,0.01228]
[1763114657943,0.20663856,96788.0,96782.0,0.20664833]
[1763114658142,0.20664241,96786.0,96782.0,0.20764833]
[1763114658403,0.323,96799.0,96782.0,0.001]
[1763114658603,0.323,96799.0,96783.0,0.20664786]
[1763114658861,0.20663972,96787.0,96783.0,0.20664786]
[1763114659030,0.20662864,96792.0,96785.0,0.20664287]
[1763114659173,0.20662437,96794.0,96785.0,0.20664287]
[1763114659378,0.20662854,96793.0,96787.0,0.20663851]
[1763114659628,0.20664231,96786.0,96782.0,0.001]
[1763114659803,0.20664447,96785.0,96782.0,0.001]
[1763114660003,0.20664701,96784.0,96782.0,0.001]
[1763114660209,0.20664701,96784.0,96782.0,0.004]
[1763114660471,0.323,96799.0,96782.0,0.004]
[1763114660472,0.20663179,96791.0,96782.0,0.004]
[1763114660677,0.323,96799.0,96782.0,0.001]
[1763114660678,0.09761561,96795.0,96782.0,0.001]
[1763114661082,0.20664786,96783.0,96782.0,0.003]
[1763114661466,0.20664786,96783.0,96773.0,0.01228]
[1763114661642,0.09761561,96795.0,96773.0,0.01228]
[1763114661856,0.20663582,96789.0,96783.0,0.20664723]
[1763114662046,0.30424115,96794.0,96782.0,0.003]
[1763114662433,0.20662917,96792.0,96787.0,0.206638]
[1763114662830,0.09761561,96794.0,96784.0,0.20664512]
[1763114663005,0.2066376,96788.0,96784.0,0.20664512]
[1763114663205,0.2066376,96788.0,96785.0,0.20664279]
[1763114663408,0.09761561,96794.0,96777.0,0.20666067]
[1763114663623,0.20663185,96791.0,96786.0,0.20663968]
[1763114663829,0.20664458,96785.0,96781.0,0.20665101]
[1763114664167,0.20663713,96789.0,96784.0,0.20864487]
[1763114664371,0.09761561,96794.0,96791.0,0.20663028]
[1763114664509,0.2066292,96792.0,96788.0,0.20663578]
[1763114664711,0.3042403,96794.0,96789.0,0.20663473]
[1763114664899,0.3042403,96794.0,96788.0,0.20663578]
[1763114664900,0.20662699,96793.0,96788.0,0.20663578]
[1763114665102,0.20662699,96793.0,96789.0,0.20663453]
[1763114665303,0.00949872,96792.0,96786.0,0.20663963]
[1763114665504,0.20663741,96788.0,96784.0,0.20664404]
[1763114665701,0.09761561,96794.0,96781.0,0.003]
[1763114665702,0.20664803,96783.0,96781.0,0.003]
[1763114666131,0.20663502,96790.0,96782.0,0.20664967]
[1763114666330,0.00950627,96789.0,96785.0,0.20664336]
[1763114666545,0.00950627,96789.0,96773.0,0.01228]
[1763114666546,0.09761561,96794.0,96788.0,0.002]
[1763114666755,0.00950786,96793.0,96792.0,0.20662864]
[1763114667137,0.09761561,96810.0,96808.0,0.02846]
[1763114667336,0.323,96816.0,96809.0,0.01618]
[1763114667450,0.09761561,96825.0,96813.0,0.20658239]
[1763114667451,0.00951672,96815.0,96813.0,0.20658239]
[1763114667654,0.00951672,96814.0,96813.0,0.20658239]
[1763114668273,0.00951672,96814.0,96813.0,0.2067188]
[1763114668875,0.00951672,96814.0,96813.0,0.2077188]
[1763114669707,0.23517184,96814.0,96813.0,0.00113641]
[1763114669989,0.33170894,96814.0,96813.0,0.00113641]
[1763114670202,0.35367571,96814.0,96813.0,0.00313641]
[1763114670596,0.35367571,96814.0,96813.0,0.00013641]
[1763114671032,0.35367571,96814.0,96813.0,0.00113641]
[1763114671033,0.25713861,96814.0,96813.0,0.00113641]
[1763114671214,0.36080799,96814.0,96813.0,0.00113641]
[1763114671412,0.72722673,96814.0,96813.0,0.00113641]
[1763114671727,0.62335599,96814.0,96813.0,0.00113641]
[1763114672040,0.65100858,96814.0,96813.0,0.00113641]
[1763114672242,0.65100858,96814.0,96813.0,0.00013641]
[1763114672243,0.62335599,96814.0,96813.0,0.00013641]
[1763114672377,0.62335599,96814.0,96810.0,0.02]
[1763114672378,0.57300683,96811.0,96810.0,0.02]
[1763114672566,0.61404703,96811.0,96810.0,0.02013646]
[1763114674278,0.61404703,96811.0,96810.0,0.02113646]
[1763114674445,0.66913041,96811.0,96810.0,0.02113646]
[1763114674976,0.61404703,96811.0,96810.0,0.02113646]
[1763114675407,0.61404703,96811.0,96810.0,0.02013646]
[1763114675610,0.61504703,96811.0,96810.0,0.02105613]
[1763114675965,0.67020386,96811.0,96810.0,0.02105613]
[1763114676332,0.61504703,96811.0,96810.0,0.02091967]
[1763114676502,0.20663932,96787.0,96786.0,0.01228]
[1763114676699,0.24767952,96787.0,96786.0,0.01241675]
[1763114677739,0.24767952,96787.0,96786.0,0.01341675]
[1763114678497,0.24767952,96787.0,96786.0,0.00113675]
[1763114678696,0.24767952,96787.0,96786.0,0.00313675]
[1763114678902,0.06868409,96787.0,96786.0,0.00313675]
[1763114679112,0.24767952,96787.0,96786.0,0.00313675]
[1763114679260,0.24767952,96787.0,96786.0,0.00113675]
[1763114679623,0.24767952,96787.0,96786.0,0.00213675]
[1763114680184,0.24767952,96787.0,96786.0,0.00113675]
[1763114680383,0.24767952,96787.0,96786.0,0.00013675]
[1763114681023,0.0410402,96787.0,96786.0,0.2067782]
[1763114681470,0.0410402,96787.0,96786.0,0.00213675]
[1763114681605,0.24767952,96787.0,96786.0,0.00213675]
[1763114681812,0.24781848,96787.0,96786.0,0.00213675]
[1763114682258,0.24781848,96787.0,96786.0,0.00013675]
[1763114682651,0.24781848,96787.0,96786.0,0.00213675]
[1763114683285,0.24781848,96787.0,96786.0,0.2087782]
[1763114683286,0.04117916,96787.0,96786.0,0.2087782]
[1763114683512,0.01921239,96787.0,96786.0,0.2087782]
[1763114684103,0.02764389,96803.0,96802.0,0.2066073]
[1763114684343,0.0317656,96803.0,96802.0,0.2451173]
[1763114684555,0.0317656,96803.0,96802.0,0.2066073]
[1763114685702,0.0317656,96803.0,96800.0,0.02]
[1763114685703,0.00961215,96803.0,96800.0,0.02]
[1763114685910,0.20659375,96809.0,96802.0,0.01607]
[1763114686079,0.02215345,96812.0,96802.0,0.01607]
[1763114686080,0.02215345,96808.0,96802.0,0.01337]
[1763114686256,0.2065849,96813.0,96803.0,0.02344]
[1763114686464,0.04138201,96812.0,96803.0,0.02344]
[1763114686813,0.02764389,96816.0,96803.0,0.02344]
[1763114686814,0.04138201,96811.0,96803.0,0.02344]
[1763114686984,0.20659431,96809.0,96803.0,0.23004451]
[1763114687186,0.02215345,96808.0,96803.0,0.02344]
[1763114687368,0.20659887,96807.0,96804.0,0.02344]
[1763114687546,0.20659922,96806.0,96804.0,0.02344]
[1763114688758,0.02214634,96805.0,96804.0,0.02344]
[1763114689116,0.20660303,96804.0,96803.0,0.003]
[1763114689323,0.22874937,96804.0,96803.0,0.003]
[1763114689534,0.20662651,96793.0,96788.0,0.02344]
[1763114690488,0.20662651,96793.0,96789.0,0.02344]
[1763114690693,0.20662651,96793.0,96790.0,0.02344]
[1763114690995,0.20662651,96793.0,96792.0,0.01337]
[1763114691577,0.20662651,96793.0,96792.0,0.01537]
[1763114691782,0.20662651,96793.0,96792.0,0.03881]
[1763114694031,0.20662651,96793.0,96792.0,0.03885]
[1763114695553,0.20662651,96793.0,96792.0,0.01541]
[1763114697099,0.20662651,96793.0,96792.0,0.00304]
[1763114697100,0.38689093,96793.0,96792.0,0.00304]
[1763114697326,0.62724212,96793.0,96792.0,0.00304]
[1763114697528,0.52962651,96793.0,96792.0,0.00304]
[1763114697736,0.52962651,96793.0,96792.0,0.00104]
[1763114697950,0.52962651,96793.0,96792.0,4e-05]
[1763114698169,0.52962651,96793.0,96792.0,0.00104]
[1763114699988,0.20659236,96809.0,96801.0,0.01507]
[1763114700194,0.11977722,96808.0,96793.0,0.03581]
[1763114700453,0.02764389,96818.0,96803.0,0.20660386]
[1763114700662,0.20658596,96812.0,96807.0,0.01197]
[1763114700841,0.20659187,96810.0,96807.0,0.01197]
[1763114701039,0.20658881,96811.0,96807.0,0.01197]
[1763114701374,0.20659296,96809.0,96807.0,0.01197]
[1763114701506,0.20656727,96821.0,96807.0,0.01197]
[1763114701507,0.323,96826.0,96816.0,0.01646]
[1763114701741,0.38407395,96840.0,96820.0,0.01197]
[1763114701742,0.20655271,96828.0,96820.0,0.01197]
[1763114701944,0.20655485,96827.0,96825.0,0.01646]
[1763114702346,0.20655485,96827.0,96826.0,0.01197]
[1763114702749,0.20655485,96827.0,96826.0,0.01210675]
[1763114703152,0.2065435,96832.0,96827.0,0.20655333]
[1763114703357,0.02764389,96855.0,96827.0,0.20655333]
[1763114703358,0.02764389,96856.0,96835.0,0.01646]
[1763114703737,0.02764389,96856.0,96826.0,0.01210675]
[1763114703738,0.20651868,96844.0,96840.0,0.01197]
[1763114703941,0.20649637,96854.0,96840.0,0.01197]
[1763114703942,0.20651393,96846.0,96840.0,0.01197]
[1763114704143,0.20652199,96842.0,96840.0,0.01197]
[1763114704365,0.20650916,96848.0,96840.0,0.01197]
[1763114704480,0.20650916,96848.0,96840.0,0.03618]
[1763114704680,0.20652097,96843.0,96840.0,0.03618]
[1763114704891,0.20651665,96845.0,96840.0,0.03618]
[1763114705088,0.20651665,96845.0,96840.0,0.24270534]
[1763114705293,0.20651665,96845.0,96841.0,0.02421]
[1763114705927,0.20651519,96846.0,96842.0,0.20652109]
[1763114706133,0.20651134,96847.0,96841.0,0.02421]
[1763114706388,0.33332417,96860.0,96850.0,0.01646]
[1763114706551,0.2065,96853.0,96850.0,0.01646]
[1763114706863,0.2065,96853.0,96851.0,0.01141]
[1763114707239,0.2064986,96854.0,96851.0,0.01141]
[1763114707442,0.01032417,96860.0,96851.0,0.01141]
[1763114707644,0.52949341,96856.0,96851.0,0.01141]
[1763114707843,0.20649153,96857.0,96852.0,0.2310292]
[1763114708074,0.20648224,96861.0,96852.0,0.2310292]
[1763114708257,0.20649266,96856.0,96852.0,0.02453]
[1763114708464,0.20649706,96854.0,96852.0,0.02453]
[1763114708845,0.20649654,96856.0,96852.0,0.02453]
[1763114709049,0.323,96875.0,96852.0,0.02453]
[1763114709255,0.20649581,96855.0,96852.0,0.02453]
[1763114709802,0.20648435,96860.0,96852.0,0.02453]
[1763114710010,0.20648834,96858.0,96853.0,0.20649734]
[1763114710172,0.20648834,96858.0,96853.0,0.22961734]
[1763114710542,0.20647911,96863.0,96854.0,0.23102482]
[1763114710747,0.20647121,96866.0,96862.0,0.01516]
[1763114710956,0.20647121,96866.0,96864.0,0.01141]
[1763114711095,0.20646212,96871.0,96864.0,0.01141]
[1763114711295,0.30406597,96876.0,96864.0,0.01141]
[1763114711296,0.20645584,96874.0,96867.0,0.20646854]
[1763114711508,0.09761561,96876.0,96875.0,0.01516]
[1763114711722,0.323,96889.0,96878.0,0.20644454]
[1763114711723,0.20642187,96889.0,96878.0,0.20644454]
[1763114711918,0.02209952,96888.0,96878.0,0.20644454]
[1763114712120,0.20642902,96886.0,96879.0,0.01141]
[1763114712349,0.52942597,96888.0,96879.0,0.01141]
[1763114712550,0.20642191,96889.0,96879.0,0.01141]
[1763114712757,0.1252595,96898.0,96879.0,0.01141]
[1763114712758,0.323,96888.0,96879.0,0.01141]
[1763114713386,0.09761561,96898.0,96877.0,0.01141]
[1763114713569,0.20641385,96893.0,96878.0,0.20644314]
[1763114713721,0.02209325,96892.0,96878.0,0.20644314]
[1763114713928,0.20641459,96893.0,96879.0,0.02453]
[1763114714359,0.2063997,96900.0,96879.0,0.02553]
[1763114714563,0.20640319,96898.0,96879.0,0.02553]
[1763114714764,0.02208358,96897.0,96879.0,0.02553]
[1763114714998,0.2064144,96893.0,96879.0,0.02553]
[1763114715214,0.20641617,96892.0,96879.0,0.02553]
[1763114715374,0.01051885,96910.0,96879.0,0.02553]
[1763114715375,0.20640816,96896.0,96879.0,0.02553]
[1763114715734,0.20640448,96898.0,96879.0,0.02553]
[1763114716084,0.02764389,96909.0,96879.0,0.02553]
[1763114716300,0.01051885,96910.0,96879.0,0.02553]
[1763114716301,0.03816274,96910.0,96879.0,0.02553]
[1763114716499,0.20638659,96906.0,96879.0,0.02553]
[1763114716700,0.02206586,96905.0,96879.0,0.02553]
[1763114717070,0.02206586,96909.0,96879.0,0.02553]
[1763114717344,0.20638052,96909.0,96879.0,0.02553]
[1763114717545,0.22844857,96908.0,96879.0,0.02453]
[1763114717691,0.20638723,96906.0,96879.0,0.02453]
[1763114717891,0.01051885,96910.0,96879.0,0.02453]
[1763114717892,0.0002,96910.0,96879.0,0.02453]
[1763114718091,0.0002,96910.0,96879.0,0.34853]
[1763114718626,0.0002,96910.0,96879.0,0.324]
[1763114718828,0.0002,96910.0,96879.0,0.326]
[1763114719007,0.01051885,96910.0,96879.0,0.326]
[1763114719213,0.01051885,96910.0,96879.0,0.325]
[1763114719426,0.01051885,96910.0,96879.0,0.44696]
[1763114719626,0.01051885,96910.0,96879.0,0.45196]
[1763114719849,0.20640268,96898.0,96879.0,0.45196]
[1763114720191,0.0002,96910.0,96879.0,0.44696]
[1763114720366,0.20637989,96909.0,96879.0,0.44796]
[1763114720570,0.0002,96910.0,96879.0,0.45096]
[1763114720975,0.0002,96910.0,96879.0,0.45092]
[1763114721209,0.2063848,96907.0,96879.0,0.327]
[1763114721331,0.2063848,96907.0,96879.0,0.45092]
[1763114721729,0.20638382,96907.0,96879.0,0.45092]
[1763114721969,0.0002,96910.0,96879.0,0.45092]
[1763114722930,0.20637943,96909.0,96879.0,0.45092]
[1763114723136,0.20638432,96907.0,96879.0,0.45092]
[1763114723341,0.20638612,96906.0,96879.0,0.45092]
[1763114723564,0.2063817,96908.0,96879.0,0.45092]
[1763114723763,0.20637926,96909.0,96879.0,0.45092]
[1763114724009,0.0002,96910.0,96879.0,0.45092]
[1763114725265,0.20637984,96909.0,96879.0,0.45092]
[1763114725427,0.0002,96910.0,96879.0,0.45092]
[1763114725622,0.2065773,96910.0,96879.0,0.45092]
[1763114726051,0.0002,96910.0,96879.0,0.45092]
[1763114726549,0.0002,96910.0,96879.0,0.65736308]
[1763114727895,0.20657734,96910.0,96879.0,0.65736308]
[1763114728184,0.20638291,96908.0,96879.0,0.65736308]
[1763114728482,0.20638486,96907.0,96879.0,0.65736308]
[1763114728696,0.20637929,96909.0,96879.0,0.65736308]
[1763114728937,0.20638452,96907.0,96879.0,0.65736308]
[1763114729138,0.2063826,96908.0,96879.0,0.65736308]
[1763114729268,0.20640904,96895.0,96879.0,0.65736308]
[1763114729479,0.01031991,96900.0,96879.0,0.65736308]
[1763114729672,0.21671874,96900.0,96879.0,0.65736308]
[1763114729875,0.20159883,96900.0,96899.0,0.01141]
[1763114730080,0.01961092,96900.0,96899.0,0.02657]
[1763114730292,0.01961092,96900.0,96899.0,0.24113047]
[1763114730722,0.01961092,96900.0,96899.0,0.21781047]
[1763114731132,0.01961092,96900.0,96899.0,0.21881047]
[1763114732207,0.01961092,96900.0,96899.0,0.21885047]
[1763114733499,0.00045577,96900.0,96899.0,0.54185047]
[1763114735208,0.00045577,96900.0,96899.0,0.54085047]
[1763114735694,0.00045577,96900.0,96899.0,2.00168221]
[1763114735923,0.00045577,96900.0,96899.0,1.91447021]
[1763114736105,0.00045577,96900.0,96899.0,1.88956621]
[1763114736404,0.00045577,96900.0,96899.0,1.88856621]
[1763114736625,0.00022206,96928.0,96927.0,0.20634085]
[1763114736841,0.01955642,96928.0,96927.0,0.23391085]
[1763114737043,0.01955642,96928.0,96927.0,0.21860085]
[1763114737450,0.00035872,96928.0,96927.0,0.21860085]
[1763114738078,0.00035872,96928.0,96927.0,0.22060085]
[1763114738989,0.00035872,96928.0,96927.0,0.22160085]
[1763114739192,0.00035872,96928.0,96927.0,0.54460085]
[1763114744206,3.02e-05,96928.0,96927.0,0.54284085]
[1763114746096,3.02e-05,96928.0,96927.0,1.04235385]
[1763114746331,3.02e-05,96928.0,96927.0,1.00553485]
[1763114746922,3.02e-05,96928.0,96927.0,0.54084085]
[1763114747176,3.02e-05,96928.0,96927.0,0.1371]
[1763114747413,3.02e-05,96928.0,96927.0,0.01426]
[1763114747892,3.02e-05,96928.0,96927.0,0.01226]
[1763114748149,3.02e-05,96928.0,96927.0,0.01326]
[1763114748399,3.02e-05,96928.0,96927.0,0.01426]
[1763114749604,3.02e-05,96928.0,96927.0,0.01226]
[1763114749996,3.02e-05,96928.0,96920.0,0.5]
[1763114750374,3.02e-05,96928.0,96927.0,0.001]
[1763114750724,3.02e-05,96928.0,96920.0,0.5]
[1763114750930,3.02e-05,96928.0,96926.0,0.20634242]
[1763114751130,3.02e-05,96928.0,96927.0,0.001]
[1763114751349,3.02e-05,96928.0,96927.0,0.03658]
[1763114751350,0.0010302,96928.0,96927.0,0.03658]
[1763114751646,3.02e-05,96928.0,96927.0,0.03658]
[1763114751850,3.02e-05,96928.0,96927.0,0.01326]
[1763114752103,0.0010302,96928.0,96927.0,0.001]
[1763114752306,3.02e-05,96928.0,96927.0,0.001]
[1763114752646,3.02e-05,96928.0,96920.0,0.5]
[1763114752647,0.20634745,96924.0,96920.0,0.5]
[1763114753087,0.20635202,96922.0,96920.0,0.5]
[1763114754400,0.20735202,96922.0,96920.0,0.5]